fUSD/lending_fUSD_20240907
["ID","MTS","AMOUNT","RATE_DAILY","PERIOD"]
[337492370,1725700249753,-1475.71,0.00014985,2]
[337492371,1725700249763,-1475.71,0.00014985,2]
[337492372,1725700249775,-1475.71,0.00014985,2]
[337492373,1725700249784,-1651.83,0.00014985,2]
[337492374,1725700249793,-1651.83,0.00014985,2]
[337492375,1725700249803,-1651.83,0.00014985,2]
[337492376,1725700249813,-1651.83,0.00014985,2]
[337492377,1725700249823,-1651.83,0.00014985,2]
[337492378,1725700249833,-1651.83,0.00014985,2]
[337492379,1725700249842,-1651.83,0.00014985,2]
[337492380,1725700249853,-1651.83,0.00014985,2]
[337492381,1725700249863,-1651.83,0.00014985,2]
[337492382,1725700249872,-1651.83,0.00014985,2]
[337492383,1725700249881,-769.26,0.00014985,2]
[337492384,1725700249891,-769.26,0.00014985,2]
[337492385,1725700249900,-769.26,0.00014985,2]
[337492386,1725700249910,-769.26,0.00014985,2]
[337492387,1725700249920,-769.26,0.00014985,2]
[337492388,1725700249930,-769.26,0.00014985,2]
[337492389,1725700249940,-769.26,0.00014985,2]
[337492390,1725700249949,-769.26,0.00014985,2]
[337492391,1725700249959,-769.26,0.00014985,2]
[337492392,1725700249968,-769.26,0.00014985,2]
[337492393,1725700249977,-1335.29,0.00014985,2]
[337492394,1725700249988,-1335.29,0.00014985,2]
[337492395,1725700249997,-1335.29,0.00014985,2]
[337492396,1725700250006,-1335.29,0.00014985,2]
[337492397,1725700250016,-1335.29,0.00014985,2]
[337492398,1725700250025,-1335.29,0.00014985,2]
[337492399,1725700250035,-1335.29,0.00014985,2]
[337492400,1725700250044,-1335.29,0.00014985,2]
[337492401,1725700250054,-1335.29,0.00014985,2]
[337492402,1725700250063,-1335.29,0.00014985,2]
[337492403,1725700250073,-1173.92,0.00014985,2]
[337492404,1725700250082,-1173.92,0.00014985,2]
[337492405,1725700250092,-1173.92,0.00014985,2]
[337492406,1725700250101,-1173.92,0.00014985,2]
[337492407,1725700250111,-1173.92,0.00014985,2]
[337492408,1725700250120,-1173.92,0.00014985,2]
[337492409,1725700250130,-1173.92,0.00014985,2]
[337492410,1725700250139,-1173.92,0.00014985,2]
[337492411,1725700250149,-1173.92,0.00014985,2]
[337492412,1725700250159,-1173.92,0.00014985,2]
[337492413,1725700250169,-1552.52,0.00014985,2]
[337492414,1725700250178,-1552.52,0.00014985,2]
[337492415,1725700250187,-1552.52,0.00014985,2]
[337492416,1725700250197,-1552.52,0.00014985,2]
[337492417,1725700250207,-1552.52,0.00014985,2]
[337492418,1725700250217,-1552.52,0.00014985,2]
[337492419,1725700250227,-500.0,0.00014985,2]
[337492420,1725700250238,-1552.52,0.00014985,2]
[337492421,1725700250248,-500.0,0.00014985,2]
[337492422,1725700250259,-1552.52,0.00014985,2]
[337492423,1725700250268,-500.0,0.00014985,2]
[337492424,1725700250278,-1552.52,0.00014985,2]
[337492425,1725700250287,-500.0,0.00014985,2]
[337492426,1725700250297,-500.0,0.00014985,2]
[337492427,1725700250307,-500.0,0.00014985,2]
[337492428,1725700250316,-500.0,0.00014985,2]
[337492429,1725700250326,-500.0,0.00014985,2]
[337492430,1725700250335,-1552.52,0.00014985,2]
[337492431,1725700250345,-500.0,0.00014985,2]
[337492432,1725700250354,-500.0,0.00014985,2]
[337492433,1725700250363,-522.00383735,0.00014985,2]
[337492434,1725700250372,-500.0,0.00014985,2]
[337492435,1725700250382,-500.0,0.00014985,2]
[337492436,1725700250391,-500.0,0.00014985,2]
[337492437,1725700250400,-500.0,0.00014985,2]
[337492438,1725700250409,-500.0,0.00014985,2]
[337492439,1725700250419,-500.0,0.00014985,2]
[337492440,1725700250428,-500.0,0.00014985,2]
[337492441,1725700250439,-500.0,0.00014985,2]
[337492442,1725700250449,-500.0,0.00014985,2]
[337492443,1725700250458,-500.0,0.00014985,2]
[337492444,1725700250468,-546.04330525,0.00014985,2]
[337492445,1725700250477,-1448.92,0.00014985,2]
[337492446,1725700250492,-1448.92,0.00014985,2]
[337492447,1725700250501,-1448.92,0.00014985,2]
[337492448,1725700250511,-1448.92,0.00014985,2]
[337492449,1725700250520,-1363.44,0.00014985,2]
[337492450,1725700250530,-1448.92,0.00014985,2]
[337492451,1725700250540,-1363.44,0.00014985,2]
[337492452,1725700250550,-1448.92,0.00014985,2]
[337492453,1725700250559,-1363.44,0.00014985,2]
[337492454,1725700250569,-1448.92,0.00014985,2]
[337492455,1725700250578,-1363.44,0.00014985,2]
[337492456,1725700250587,-1448.92,0.00014985,2]
[337492457,1725700250597,-1363.44,0.00014985,2]
[337492458,1725700250606,-1448.92,0.00014985,2]
[337492459,1725700250615,-1363.44,0.00014985,2]
[337492460,1725700250625,-1410.7,0.00014985,2]
[337492461,1725700250634,-1363.44,0.00014985,2]
[337492462,1725700250643,-1410.7,0.00014985,2]
[337492463,1725700250653,-1410.7,0.00014985,2]
[337492464,1725700250662,-1410.7,0.00014985,2]
[337492465,1725700250671,-1410.7,0.00014985,2]
[337492466,1725700250680,-1869.45,0.00014985,2]
[337492467,1725700250689,-1363.44,0.00014985,2]
[337492468,1725700250698,-1410.7,0.00014985,2]
[337492469,1725700250707,-1363.44,0.00014985,2]
[337492470,1725700250716,-1869.45,0.00014985,2]
[337492471,1725700250725,-1410.7,0.00014985,2]
[337492472,1725700250734,-1363.44,0.00014985,2]
[337492473,1725700250744,-1869.45,0.00014985,2]
[337492474,1725700250753,-1410.7,0.00014985,2]
[337492475,1725700250762,-1869.45,0.00014985,2]
[337492476,1725700250772,-1410.7,0.00014985,2]
[337492477,1725700250782,-1410.7,0.00014985,2]
[337492478,1725700250792,-1869.45,0.00014985,2]
[337492479,1725700250801,-1869.45,0.00014985,2]
[337492480,1725700250810,-1869.45,0.00014985,2]
[337492481,1725700250821,-1869.45,0.00014985,2]
[337492482,1725700250830,-1869.45,0.00014985,2]
[337492483,1725700250840,-1869.45,0.00014985,2]
[337492484,1725700250850,-260.75014603,0.00014985,2]
[337492485,1725700250860,-880.11,0.00014985,2]
[337492486,1725700250869,-880.11,0.00014985,2]
[337492487,1725700250878,-880.11,0.00014985,2]
[337492488,1725700250888,-880.11,0.00014985,2]
[337492489,1725700250897,-880.11,0.00014985,2]
[337492490,1725700250905,-880.11,0.00014985,2]
[337492491,1725700250915,-880.11,0.00014985,2]
[337492492,1725700250924,-880.11,0.00014985,2]
[337492493,1725700250934,-880.11,0.00014985,2]
[337492494,1725700250943,-1237.0,0.00014985,2]
[337492495,1725700250952,-880.11,0.00014985,2]
[337492496,1725700250962,-1237.0,0.00014985,2]
[337492497,1725700250971,-1237.0,0.00014985,2]
[337492498,1725700250980,-1237.0,0.00014985,2]
[337492499,1725700250990,-1237.0,0.00014985,2]
[337492500,1725700250999,-1237.0,0.00014985,2]
[337492501,1725700251009,-1237.0,0.00014985,2]
[337492502,1725700251018,-1237.0,0.00014985,2]
[337492503,1725700251027,-1237.0,0.00014985,2]
[337492504,1725700251037,-1237.0,0.00014985,2]
[337492505,1725700251046,-508.6,0.00014985,2]
[337492506,1725700251055,-1259.66,0.00014985,2]
[337492507,1725700251064,-508.6,0.00014985,2]
[337492508,1725700251073,-1259.66,0.00014985,2]
[337492509,1725700251082,-508.6,0.00014985,2]
[337492510,1725700251092,-1259.66,0.00014985,2]
[337492511,1725700251101,-508.6,0.00014985,2]
[337492512,1725700251111,-1259.66,0.00014985,2]
[337492513,1725700251120,-508.6,0.00014985,2]
[337492514,1725700251129,-1259.66,0.00014985,2]
[337492515,1725700251139,-508.6,0.00014985,2]
[337492516,1725700251149,-508.6,0.00014985,2]
[337492517,1725700251158,-1259.66,0.00014985,2]
[337492518,1725700251167,-508.6,0.00014985,2]
[337492519,1725700251177,-1259.66,0.00014985,2]
[337492520,1725700251186,-508.6,0.00014985,2]
[337492521,1725700251195,-1259.66,0.00014985,2]
[337492522,1725700251204,-508.6,0.00014985,2]
[337492523,1725700251213,-1259.66,0.00014985,2]
[337492524,1725700251222,-1259.66,0.00014985,2]
[337492525,1725700251232,-1214.97,0.00014985,2]
[337492526,1725700251241,-1214.97,0.00014985,2]
[337492527,1725700251250,-1214.97,0.00014985,2]
[337492528,1725700251259,-1214.97,0.00014985,2]
[337492529,1725700251268,-1214.97,0.00014985,2]
[337492530,1725700251277,-1214.97,0.00014985,2]
[337492531,1725700251286,-1214.97,0.00014985,2]
[337492532,1725700251296,-1214.97,0.00014985,2]
[337492533,1725700251305,-1214.97,0.00014985,2]
[337492534,1725700251315,-1214.97,0.00014985,2]
[337492535,1725700251325,-261217.03275388,0.00014986,2]
[337492536,1725700251690,-500.0,0.00014794,2]
[337492537,1725700251700,-500.0,0.00014794,2]
[337492538,1725700251709,-462.76416002,0.00014979,2]
[337492539,1725700251720,-37.23583998,0.00014979,2]
[337492540,1725700251729,-425.01554965,0.00014985,2]
[337492541,1725700251741,-74.98445035,0.00014985,2]
[337492542,1725700251750,-500.0,0.00014985,2]
[337492543,1725700251759,-500.0,0.00014985,2]
[337492544,1725700251769,-500.0,0.00014985,2]
[337492545,1725700251781,-500.0,0.00014985,2]
[337492546,1725700251790,-500.0,0.00014985,2]
[337492547,1725700251799,-2068.56934612,0.00014986,2]
[337492548,1725700251820,-500.0,0.00014985,2]
[337492549,1725700251828,-15844.51668327,0.00014986,2]
[337492550,1725700251839,-2064.39225517,0.00014986,2]
[337492551,1725700251879,-1373.16223695,0.00014986,2]
[337492552,1725700251890,-470.08,0.00014986,2]
[337492553,1725700251901,-285.60453231,0.00014986,2]
[337492554,1725700251911,-86110.23799385,0.00014986,2]
[337492555,1725700251922,-376.58731798,0.00014986,2]
[337492556,1725700251933,-3678.56594504,0.00014986,2]
[337492557,1725700251944,-442.82396974,0.00014986,2]
[337492558,1725700251955,-109684.32219062,0.00014986,2]
[337492559,1725700251966,-160032.32189795,0.00014986,2]
[337492560,1725700251976,-891.94150928,0.00014986,2]
[337492561,1725700251987,-1000.0,0.00014986,2]
[337492562,1725700251998,-13413.68580089,0.00014986,2]
[337492563,1725700252009,-1657.21148328,0.00014986,2]
[337492564,1725700252020,-9673.94992461,0.00014986,2]
[337492565,1725700252032,-3578.38314441,0.00014986,2]
[337492566,1725700252043,-362.84671771,0.00014986,2]
[337492567,1725700334536,417.37,0.00011947,2]
[337492568,1725700438868,159.19,0.00010959,2]
[337492569,1725700914924,396.5,0.00011084,2]
[337492630,1725701432019,-155.28,0.00012128,2]
[337492631,1725701432028,-1000.0,0.00012146,2]
[337492632,1725701432037,-200.0,0.00012574,2]
[337492633,1725701432047,-250.0,0.0001267,2]
[337492634,1725701432056,-300.0,0.00012672,2]
[337492635,1725701432066,-150.0,0.00012672,2]
[337492636,1725701432075,-244.72,0.00012673,2]
[337492637,1725701432087,-42.0645,0.00012673,2]
[337492638,1725701432096,-457.9355,0.00012673,2]
[337492639,1725701432107,-836.89298034,0.00012673,2]
[337492640,1725701432119,-886.55,0.00012673,2]
[337492641,1725701432141,-734.6075021,0.00012673,2]
[337492642,1725701432153,-15546.1140996,0.00012673,2]
[337492643,1725701432164,-7098.22734583,0.00012673,2]
[337492644,1725701432177,-300.75376989,0.00012673,2]
[337492645,1725701432210,-903.92013879,0.00012673,2]
[337492646,1725701432226,-29219.29385109,0.00012673,2]
[337492658,1725701437954,-9419.18234965,0.00012673,2]
[337492659,1725701438123,-1327.24347097,0.00012673,2]
[337492660,1725701438237,-3572.75652903,0.00012673,2]
[337492798,1725701439860,376.67,0.0001064,2]
[337492807,1725701439942,-398.62975953,0.00012673,2]
[337492826,1725701440115,-6807.29100773,0.00012673,2]
[337492833,1725701440176,-7277.04149545,0.00012673,2]
[337492835,1725701440187,-841.238,0.000127,2]
[337492837,1725701440196,-250.0,0.00012748,2]
[337492839,1725701440206,-376.67,0.00012904,2]
[337492841,1725701440215,-247.98,0.00012915,2]
[337492843,1725701440226,-296.98310568,0.00012917,2]
[337492844,1725701440235,-150.99,0.00012917,2]
[337492847,1725701440245,-250.0,0.00012985,2]
[337492849,1725701440256,-150.99,0.00012985,2]
[337492869,1725701440444,-258.05,0.00012999,2]
[337492871,1725701440454,-4992565.13883637,0.00013,2]
[337492875,1725701440486,-2544.54,0.00013,2]
[337492877,1725701440497,-899.50138896,0.00013,2]
[337493067,1725701442939,-23018.06022655,0.00013,2]
[337493068,1725701442951,-1912.67514071,0.00013,2]
[337493075,1725701443482,-900.0,0.00013,2]
[337493076,1725701443493,-2734.9,0.00013,2]
[337493077,1725701443508,-8819.29105158,0.00013,2]
[337493078,1725701443520,-28449.13594169,0.00013,2]
[337493080,1725701446106,-157.59,0.00012559,2]
[337493081,1725701446115,-39466.0896389,0.00013,2]
[337493082,1725701446169,-2743.03729639,0.00013,2]
[337493083,1725701446184,-1336.21180422,0.00013,2]
[337493084,1725701446235,-2621.36630183,0.00013,2]
[337493085,1725701446294,-1600.26692136,0.00013,2]
[337493091,1725701815464,903.70872344,0.0001198,2]
[337493092,1725701891377,200.0,0.00011997,2]
[337493093,1725701921047,173.65,0.00011971,2]
[337493094,1725701921166,203.0,0.00010959,2]
[337493095,1725701942211,150.0,0.00011971,2]
[337493096,1725701949832,1074.43,0.00011966,2]
[337493097,1725702002175,157.56,0.00011979,2]
[337493098,1725702045037,200.35,0.00011973,2]
[337493099,1725702071758,549.01873,0.0001125,2]
[337493101,1725702088988,500.0,0.0001196,2]
[337493102,1725702181906,250.0,0.00011959,2]
[337493103,1725702193945,152.02,0.00011959,2]
[337493104,1725702208811,23900.0,0.00011959,2]
[337493105,1725702266151,371.16,0.00010052,2]
[337493106,1725702294010,250.0,0.00011959,2]
[337493107,1725702300362,250.0,0.0001197,2]
[337493108,1725702318515,240.17,0.00011964,2]
[337493109,1725702329544,800.0,0.00011972,2]
[337493110,1725702341682,324.44,0.00011972,2]
[337493115,1725702426679,194.75826541,0.00011688,2]
[337493146,1725702587517,-200.0,0.00012054,2]
[337493147,1725702587548,-1817.69185858,0.00012062,2]
[337493160,1725702632203,-1179.11300064,0.00012062,2]
[337493161,1725702632214,-544.02,0.00012062,2]
[337493162,1725702632225,-404.23514078,0.00012062,2]
[337493163,1725702632234,-34.53460465,0.00012316,2]
[337493164,1725702632245,-336.62539535,0.00012316,2]
[337493165,1725702632254,-209.802,0.00012627,2]
[337493166,1725702632263,-150.34692067,0.00012637,2]
[337493167,1725702632274,-97.63307933,0.00012637,2]
[337493168,1725702632283,-150.0,0.00012799,2]
[337493169,1725702632292,-545.5327,0.000128,2]
[337493170,1725702632302,-1877.24342262,0.000128,2]
[337493171,1725702632314,-5599.02414876,0.000128,2]
[337493172,1725702632325,-3576.97871244,0.000128,2]
[337493173,1725702632336,-4826.7295626,0.000128,2]
[337493174,1725702632349,-548.6778876,0.000128,2]
[337493175,1725702632360,-499.6,0.000128,2]
[337493176,1725702632371,-999.9006,0.000128,2]
[337493177,1725702632382,-1000.3932,0.000128,2]
[337493178,1725702632392,-367.41088192,0.000128,2]
[337493179,1725702632403,-1103.64878406,0.000128,2]
[337493180,1725702632413,-369.2051,0.000128,2]
[337493181,1725702632422,-166.31053925,0.000128,2]
[337493182,1725702632431,-3059.74961943,0.000128,2]
[337493183,1725702632445,-547.76548057,0.000128,2]
[337493184,1725702632455,-109.53750011,0.00012877,2]
[337493185,1725702632467,-390.46249989,0.00012877,2]
[337493186,1725702632476,-500.0,0.00012886,2]
[337493187,1725702632485,-285.79,0.00012886,2]
[337493188,1725702632494,-227.18,0.00012886,2]
[337493189,1725702632503,-500.0,0.00012895,2]
[337493190,1725702632512,-219.6,0.00012899,2]
[337493191,1725702632522,-150.99,0.00012899,2]
[337493192,1725702632532,-470.82,0.00012899,2]
[337493193,1725702632541,-499.99,0.00012899,2]
[337493194,1725702632550,-593.37,0.00012899,2]
[337493195,1725702632559,-4585.60695387,0.000129,2]
[337493231,1725702638163,-2446.05674079,0.000129,2]
[337493232,1725702638277,-3097.03390534,0.000129,2]
[337493233,1725702638287,-1313.02130376,0.000129,2]
[337493234,1725702638318,-925.30673529,0.000129,2]
[337493235,1725702638419,-717.50032571,0.000129,2]
[337493236,1725702638504,-3752.97498577,0.000129,2]
[337493237,1725702638515,-404.28989155,0.000129,2]
[337493238,1725702638533,-529.12011047,0.000129,2]
[337493298,1725702640220,-469.092,0.000129,2]
[337493299,1725702640232,-312.60966571,0.000129,2]
[337493300,1725702640243,-265.1286,0.000129,2]
[337493301,1725702640253,-3729.54558157,0.000129,2]
[337493302,1725702640296,-35148.20397256,0.000129,2]
[337493303,1725702640372,-40297.25792761,0.000129,2]
[337493304,1725702640383,-20000.0,0.000129,2]
[337493305,1725702640393,-1000.0,0.000129,2]
[337493306,1725702640403,-946.3744,0.000129,2]
[337493307,1725702640413,-963.8722,0.000129,2]
[337493308,1725702640424,-801.464,0.000129,2]
[337493309,1725702640434,-500.0,0.000129,2]
[337493310,1725702640445,-1030.5125,0.000129,2]
[337493311,1725702640456,-5667.05562185,0.000129,2]
[337493312,1725702640470,-1209.54095137,0.000129,2]
[337493313,1725702640507,-623.40342678,0.000129,2]
[337493314,1725702640517,-239.90763042,0.00012904,2]
[337493315,1725702640532,-260.09236958,0.00012904,2]
[337493316,1725702640542,-500.0,0.00012912,2]
[337493317,1725702640551,-97.59997389,0.00012921,2]
[337493318,1725702640563,-402.40002611,0.00012921,2]
[337493319,1725702640573,-337.66997389,0.0001293,2]
[337493320,1725702640592,-162.33002611,0.0001293,2]
[337493321,1725702640604,-500.0,0.00012939,2]
[337493322,1725702640613,-500.0,0.00012948,2]
[337493323,1725702640622,-500.0,0.00012956,2]
[337493324,1725702640631,-500.0,0.00012965,2]
[337493325,1725702640640,-500.0,0.00012973,2]
[337493326,1725702640649,-160.111136,0.00012973,2]
[337493327,1725702640658,-160.111136,0.00012973,2]
[337493328,1725702640668,-160.111136,0.00012973,2]
[337493329,1725702640677,-160.111136,0.00012973,2]
[337493330,1725702640688,-150.10419,0.00012973,2]
[337493331,1725702640697,-500.0,0.00012974,2]
[337493332,1725702640706,-500.0,0.00012983,2]
[337493333,1725702640716,-150.56,0.0001299,2]
[337493334,1725702640725,-150.56,0.0001299,2]
[337493336,1725702640735,-150.56,0.0001299,2]
[337493337,1725702640745,-500.0,0.00012992,2]
[337493338,1725702640754,-500.0,0.00012999,2]
[337493339,1725702640763,-500.0,0.00012999,2]
[337493340,1725702640773,-183.23314245,0.00012999,2]
[337493341,1725702640782,-500.0,0.00012999,2]
[337493342,1725702640794,-500.0,0.00012999,2]
[337493343,1725702640804,-588.31549017,0.00012999,2]
[337493345,1725702640813,-551.85681355,0.00012999,2]
[337493347,1725702640823,-14985.47380427,0.00013,2]
[337493349,1725702640835,-1181.8693022,0.00013,2]
[337493351,1725702640848,-791.81406173,0.00013,2]
[337493367,1725702643787,-734.35182804,0.00013,2]
[337493369,1725702644184,-2654.64403753,0.00013,2]
[337493371,1725702644196,-250.69,0.00013,2]
[337493372,1725702644212,-3926.88633819,0.00013,2]
[337493373,1725702644224,-9029.48,0.00013,2]
[337493374,1725702644235,-483.58099756,0.00013,2]
[337493375,1725702644247,-7452.15383484,0.00013,2]
[337493377,1725702644258,-449.242,0.00013,2]
[337493378,1725702644269,-1860.29152202,0.00013,2]
[337493379,1725702644289,-44550.86405831,0.00013,2]
[337493380,1725702644304,-23721.70574928,0.00013,2]
[337493381,1725702644315,-3581.32976726,0.00013,2]
[337493382,1725702646221,-269.38241397,0.00012973,2]
[337493383,1725702646232,-80.86069603,0.00012973,2]
[337493384,1725702646242,-430.56160397,0.00013,2]
[337493385,1725702646297,-77176.3203611,0.00013,2]
[337493386,1725702646331,-1394.51005659,0.00013,2]
[337493387,1725702646345,-2580.28709736,0.00013,2]
[337493388,1725702646357,-517.49928082,0.00013,2]
[337493389,1725702646369,-2522.7804,0.00013,2]
[337493390,1725702646452,-7895.18987708,0.00013,2]
[337493391,1725702646463,-1891.09879631,0.00013,2]
[337493392,1725702646474,-1213.73861579,0.00013,2]
[337493393,1725702646489,-1143.97892178,0.00013,2]
[337493394,1725702646499,-15183.09361482,0.00013,2]
[337493395,1725702646510,-572.85,0.00013,2]
[337493396,1725702646522,-1509.11451349,0.00013,2]
[337493397,1725702646534,-26766.2388339,0.00013,2]
[337493398,1725702646572,-4822.53738327,0.00013,2]
[337493399,1725702646583,-910.07126,0.00013,2]
[337493400,1725702820507,334.04,0.00010662,2]
[337493401,1725702959746,193.15,0.00010959,2]
[337493402,1725703321126,317.33,0.00010107,2]
[337493403,1725703333260,198.38,0.00012005,2]
[337493404,1725703334038,250.0,0.00012005,2]
[337493405,1725703405723,-250.0,0.00012015,2]
[337493406,1725703405746,-200.35,0.00012034,2]
[337493407,1725703405766,-173.65,0.00012043,2]
[337493408,1725703405788,-5359.04,0.0001205,2]
[337493409,1725703405811,-250.0,0.0001207,2]
[337493410,1725703405832,-317.33,0.00012371,2]
[337493411,1725703405853,-1365.0,0.00012435,2]
[337493412,1725703420261,-360.0,0.00012595,2]
[337493413,1725703426259,-200.0,0.00012631,2]
[337493414,1725703442678,-166.31053917,0.0001289,2]
[337493415,1725703442697,-1408.31946083,0.0001289,2]
[337493416,1725703522275,159.19,0.00010959,2]
[337493443,1725703832403,-250.0,0.00012068,2]
[337493444,1725703832412,-334.59550704,0.00012581,2]
[337493445,1725703832423,-315.40449296,0.00012581,2]
[337493671,1725703840812,-29.74631,0.00012581,2]
[337493673,1725703840824,-9400.00369,0.00012581,2]
[337493675,1725703840833,-1000.0,0.00012583,2]
[337493677,1725703840842,-166.31053917,0.0001289,2]
[337493679,1725703840852,-1335.88673917,0.0001289,2]
[337493681,1725703840862,-349.7484,0.000129,2]
[337493683,1725703840871,-7500.0,0.000129,2]
[337493685,1725703840881,-170.118082,0.00012973,2]
[337493687,1725703840891,-150.10419,0.00012973,2]
[337493689,1725703840900,-160.111136,0.00012973,2]
[337493691,1725703840910,-150.10419,0.00012973,2]
[337493693,1725703840919,-150.10419,0.00012973,2]
[337493695,1725703840929,-160.111136,0.00012973,2]
[337493697,1725703840939,-200.13892,0.00012973,2]
[337493699,1725703840950,-160.111136,0.00012973,2]
[337493701,1725703840961,-150.10419,0.00012973,2]
[337493703,1725703840971,-160.111136,0.00012973,2]
[337493705,1725703840980,-155.107663,0.00012973,2]
[337493707,1725703840991,-154.1069684,0.00012973,2]
[337493709,1725703841000,-150.10419,0.00012973,2]
[337493711,1725703841010,-160.127104,0.00012973,2]
[337493713,1725703841020,-160.0,0.00012973,2]
[337493715,1725703841030,-167.841,0.00012973,2]
[337493717,1725703841040,-71430.43915584,0.0001299,2]
[337493749,1725703843691,-1104.33852488,0.0001299,2]
[337493751,1725703843702,-399.18350142,0.0001299,2]
[337493760,1725703846471,-72143.15845131,0.0001299,2]
[337493761,1725703846657,-577.19555814,0.0001299,2]
[337493762,1725703846669,-308.52858885,0.0001299,2]
[337493790,1725703924522,285.59,0.00010756,2]
[337493795,1725704355007,11504.0,0.000102,5]
[337493796,1725704414560,289.07,0.00010143,2]
[337493815,1725704957193,274.61,0.00010232,2]
[337493831,1725705013601,192.85,0.00010959,2]
[337493842,1725705031482,-1000.0,0.00012015,2]
[337493843,1725705031492,-173.65,0.00012048,2]
[337493844,1725705031502,-49.55287549,0.00012068,2]
[337493845,1725705031636,-150.47712451,0.00012068,2]
[337493846,1725705031646,-250.0,0.0001209,2]
[337493847,1725705031655,-250.0,0.0001209,2]
[337493848,1725705031665,-250.0,0.00012188,2]
[337493849,1725705031674,-300.0,0.00012192,2]
[337493850,1725705031683,-3718.40515171,0.00012193,2]
[337493851,1725705031725,-505.43097376,0.00012193,2]
[337493862,1725705037602,-3684.00718386,0.00012193,2]
[337493900,1725705039696,-578.0776572,0.00012193,2]
[337493913,1725705042560,-1835.59903347,0.00012193,2]
[337493914,1725705042570,-158.7,0.00012229,2]
[337493915,1725705042580,-274.61,0.00012496,2]
[337493916,1725705042589,-153.82,0.00012667,2]
[337493917,1725705042600,-201.29,0.00012668,2]
[337493918,1725705042610,-179.32817153,0.00012715,2]
[337493937,1725705485304,159.56074964,9.55e-05,2]
[337493938,1725705485326,22.22925036,9.55e-05,2]
[337493939,1725705490628,162.56,0.00011953,2]
[337493940,1725705523582,157.54086076,0.00011927,2]
[337493941,1725705523603,92.45913924,0.00011927,2]
[337493942,1725705558155,277.77,0.00010121,2]
[337493943,1725705568490,-192.3911076,0.00012007,2]
[337493944,1725705571372,-57.6088924,0.00012007,2]
[337493945,1725705640328,200.0,0.00011952,2]
[337493946,1725705702057,151.9853052,0.00011995,2]
[337493947,1725705702078,43.1246948,0.00011995,2]
[337493948,1725705703966,150.0,0.00011995,2]
[337493949,1725705805862,150.0,0.00011975,2]
[337493950,1725705805883,150.0,0.00011975,2]
[337493951,1725705805903,150.0,0.00011975,2]
[337493952,1725705805922,150.0,0.00011975,2]
[337493953,1725705805943,150.0,0.00011975,2]
[337493954,1725705805964,150.0,0.00011975,2]
[337493955,1725705805985,150.0,0.00011975,2]
[337493956,1725705806007,150.0,0.00011975,2]
[337493957,1725705806027,150.0,0.00011975,2]
[337493958,1725705806050,150.0,0.00011975,2]
[337493959,1725705806074,150.0,0.00011975,2]
[337493960,1725705806095,150.0,0.00011975,2]
[337493961,1725705806118,150.0,0.00011975,2]
[337493962,1725705806139,150.0,0.00011975,2]
[337493963,1725705806163,150.0,0.00011975,2]
[337493964,1725705806184,150.0,0.00011975,2]
[337493965,1725705806205,150.0,0.00011975,2]
[337493966,1725705806226,150.0,0.00011975,2]
[337493967,1725705806249,150.0,0.00011975,2]
[337493968,1725705806271,150.0,0.00011975,2]
[337493969,1725705806294,150.0,0.00011975,2]
[337493970,1725705806317,150.0,0.00011975,2]
[337493971,1725705806507,150.0,0.00011975,2]